[Event "Early-Titled-Tuesday-Blitz-May-14-2024"]
[Site "Chess.com"]
[Date "2024.05.14"]
[Round "4"]
[White "Andrei_Skvortsov"]
[Black "Pedrada88"]
[Result "1-0"]
[WhiteElo "2755"]
[BlackElo "2568"]
[TimeControl "180+1"]
[EndTime "8:39:32 PDT"]
[Termination "Andrei_Skvortsov won on time"]

1. e4 {[%clk 0:03:00.9]} 1... c6 {[%clk 0:02:59.8]} 2. e5 {[%clk 0:02:58.9]}
2... g6 {[%clk 0:02:58.2]} 3. Nf3 {[%clk 0:02:58]} 3... Bg7 {[%clk 0:02:58.6]}
4. Bc4 {[%clk 0:02:57.2]} 4... d5 {[%clk 0:02:57.8]} 5. exd6 {[%clk 0:02:57.2]}
5... exd6 {[%clk 0:02:57.5]} 6. O-O {[%clk 0:02:56.1]} 6... d5 {[%clk
0:02:57.1]} 7. Re1+ {[%clk 0:02:55.8]} 7... Ne7 {[%clk 0:02:56]} 8. Bf1 {[%clk
0:02:56.4]} 8... O-O {[%clk 0:02:55.7]} 9. h3 {[%clk 0:02:53.8]} 9... a5 {[%clk
0:02:52.9]} 10. d4 {[%clk 0:02:54.1]} 10... a4 {[%clk 0:02:52.6]} 11. c3 {[%clk
0:02:53.3]} 11... Bf5 {[%clk 0:02:52]} 12. Na3 {[%clk 0:02:52.8]} 12... Nd7
{[%clk 0:02:47.7]} 13. Nc2 {[%clk 0:02:53]} 13... Nc8 {[%clk 0:02:46.8]} 14. Ne3
{[%clk 0:02:52.8]} 14... Be4 {[%clk 0:02:44.2]} 15. Nd2 {[%clk 0:02:53.3]} 15...
Nd6 {[%clk 0:02:42.7]} 16. f3 {[%clk 0:02:52.9]} 16... Bf5 {[%clk 0:02:42.3]}
17. Nxf5 {[%clk 0:02:53.2]} 17... Nxf5 {[%clk 0:02:42.2]} 18. Bd3 {[%clk
0:02:53.8]} 18... Qh4 {[%clk 0:02:35.9]} 19. Nf1 {[%clk 0:02:52.4]} 19... Rfe8
{[%clk 0:02:30.6]} 20. Bd2 {[%clk 0:02:52.4]} 20... a3 {[%clk 0:02:22.3]} 21. b3
{[%clk 0:02:52.2]} 21... Ng3 {[%clk 0:02:22.1]} 22. Rxe8+ {[%clk 0:02:45.5]}
22... Rxe8 {[%clk 0:02:21.3]} 23. Be1 {[%clk 0:02:46.1]} 23... Bxd4+ {[%clk
0:00:39.1]} 24. cxd4 {[%clk 0:02:45.6]} 24... Rxe1 {[%clk 0:00:38.1]} 25. Qxe1
{[%clk 0:02:45.5]} 25... Qxd4+ {[%clk 0:00:38.2]} 26. Kh2 {[%clk 0:02:33.8]}
26... Nh5 {[%clk 0:00:31.6]} 27. Bc2 {[%clk 0:02:28.9]} 27... Qf4+ {[%clk
0:00:21.5]} 28. Kh1 {[%clk 0:02:25.5]} 28... Ne5 {[%clk 0:00:20]} 29. Qe3 {[%clk
0:02:10.4]} 29... Ng3+ {[%clk 0:00:14.5]} 30. Kg1 {[%clk 0:02:10.3]} 30... Ne2+
{[%clk 0:00:12.2]} 31. Kf2 {[%clk 0:02:04.5]} 31... Qd4 {[%clk 0:00:04.5]} 32.
Qxd4 {[%clk 0:02:00.6]} 32... Nxd4 {[%clk 0:00:05.4]} 33. Re1 {[%clk 0:01:59.2]}
33... f6 {[%clk 0:00:02.2]} 34. Bb1 {[%clk 0:01:56.8]} 34... c5 {[%clk
0:00:02.2]} 35. Ne3 {[%clk 0:01:56.3]} 35... b5 {[%clk 0:00:01.4]} 36. Nxd5
{[%clk 0:01:56.4]} 36... Kf7 {[%clk 0:00:00.9]} 37. f4 {[%clk 0:01:54.7]} 37...
Nec6 {[%clk 0:00:00.6]} 38. Nc3 {[%clk 0:01:50.2]} 38... b4 {[%clk 0:00:00.7]}
39. Ne4 {[%clk 0:01:49.8]} 39... f5 {[%clk 0:00:00.8]} 40. Nxc5 {[%clk
0:01:49.5]} 1-0

[Event "Early-Titled-Tuesday-Blitz-May-14-2024"]
[Site "Chess.com"]
[Date "2024.05.14"]
[Round "4"]
[White "crosky"]
[Black "SanchezKelvin"]
[Result "0-1"]
[WhiteElo "2304"]
[BlackElo "2609"]
[TimeControl "180+1"]
[EndTime "8:39:33 PDT"]
[Termination "SanchezKelvin won by checkmate"]

1. d4 {[%clk 0:03:00.9]} 1... d5 {[%clk 0:02:55.4]} 2. c4 {[%clk 0:03:00.3]}
2... dxc4 {[%clk 0:02:54.9]} 3. Nf3 {[%clk 0:02:59.4]} 3... Nf6 {[%clk
0:02:53.6]} 4. Nc3 {[%clk 0:02:59.5]} 4... e6 {[%clk 0:02:51.3]} 5. e4 {[%clk
0:02:58.1]} 5... c5 {[%clk 0:02:46.6]} 6. Bxc4 {[%clk 0:02:41.7]} 6... cxd4
{[%clk 0:02:45.4]} 7. Qxd4 {[%clk 0:02:26.9]} 7... Qxd4 {[%clk 0:02:43.1]} 8.
Nxd4 {[%clk 0:02:27.8]} 8... Bc5 {[%clk 0:02:40.5]} 9. Nb3 {[%clk 0:02:14.8]}
9... Bb4 {[%clk 0:02:39.7]} 10. f3 {[%clk 0:02:06.6]} 10... Bxc3+ {[%clk
0:02:34]} 11. bxc3 {[%clk 0:02:06.5]} 11... b6 {[%clk 0:02:34.9]} 12. Bb5+
{[%clk 0:02:01.9]} 12... Bd7 {[%clk 0:02:33.6]} 13. Be2 {[%clk 0:01:57.8]} 13...
O-O {[%clk 0:02:31]} 14. Be3 {[%clk 0:01:57.7]} 14... Rc8 {[%clk 0:02:29.9]} 15.
c4 {[%clk 0:01:47.6]} 15... Na6 {[%clk 0:02:24.2]} 16. Kf2 {[%clk 0:01:44.3]}
16... Ba4 {[%clk 0:02:20.9]} 17. e5 {[%clk 0:01:35]} 17... Nd7 {[%clk
0:02:19.5]} 18. f4 {[%clk 0:01:35.4]} 18... Ndc5 {[%clk 0:02:15.8]} 19. Bf3
{[%clk 0:01:31.5]} 19... Rab8 {[%clk 0:02:08.5]} 20. Rhd1 {[%clk 0:01:02.8]}
20... Nb4 {[%clk 0:02:05.1]} 21. Bxc5 {[%clk 0:00:44.4]} 21... bxc5 {[%clk
0:02:04]} 22. Rd6 {[%clk 0:00:38.9]} 22... Nc2 {[%clk 0:01:58.2]} 23. Rc1 {[%clk
0:00:36.2]} 23... Bxb3 {[%clk 0:01:56.1]} 24. axb3 {[%clk 0:00:34.9]} 24... Nd4
{[%clk 0:01:55.7]} 25. Ra1 {[%clk 0:00:29.8]} 25... Rxb3 {[%clk 0:01:51.6]} 26.
Rxa7 {[%clk 0:00:29.4]} 26... Nxf3 {[%clk 0:01:51]} 27. gxf3 {[%clk 0:00:30]}
27... Rc3 {[%clk 0:01:46.8]} 28. Rc7 {[%clk 0:00:20.6]} 28... Ra8 {[%clk
0:01:44.7]} 29. Rxc5 {[%clk 0:00:20.3]} 29... h5 {[%clk 0:01:42.7]} 30. Rc7
{[%clk 0:00:16.8]} 30... Ra2+ {[%clk 0:01:42]} 31. Kg3 {[%clk 0:00:16.1]} 31...
Rcc2 {[%clk 0:01:33.2]} 32. Rd8+ {[%clk 0:00:10.4]} 32... Kh7 {[%clk 0:01:32.1]}
33. Rxf7 {[%clk 0:00:11.3]} 33... Kg6 {[%clk 0:01:26.3]} 34. Rfd7 {[%clk
0:00:10.3]} 34... Rg2+ {[%clk 0:01:25.6]} 35. Kh3 {[%clk 0:00:10.7]} 35... Rxh2+
{[%clk 0:01:25.6]} 36. Kg3 {[%clk 0:00:11.4]} 36... Rag2# {[%clk 0:01:24.9]} 0-1

[Event "Early-Titled-Tuesday-Blitz-May-14-2024"]
[Site "Chess.com"]
[Date "2024.05.14"]
[Round "4"]
[White "Nitzan_Steinberg"]
[Black "Lennis93"]
[Result "1-0"]
[WhiteElo "2967"]
[BlackElo "2803"]
[TimeControl "180+1"]
[EndTime "8:39:35 PDT"]
[Termination "Nitzan_Steinberg won on time"]

1. e4 {[%clk 0:03:00.9]} 1... e6 {[%clk 0:02:54.5]} 2. d4 {[%clk 0:02:59.7]}
2... d5 {[%clk 0:02:55]} 3. Nc3 {[%clk 0:02:57]} 3... Bb4 {[%clk 0:02:53.4]} 4.
e5 {[%clk 0:02:57.4]} 4... c5 {[%clk 0:02:52.8]} 5. Bd2 {[%clk 0:02:58.1]} 5...
Ne7 {[%clk 0:02:49.7]} 6. Nb5 {[%clk 0:02:58.2]} 6... Bxd2+ {[%clk 0:02:44.8]}
7. Qxd2 {[%clk 0:02:59.1]} 7... O-O {[%clk 0:02:44.3]} 8. f4 {[%clk 0:02:59.4]}
8... cxd4 {[%clk 0:02:30.1]} 9. Nf3 {[%clk 0:02:58.7]} 9... Nbc6 {[%clk
0:02:26.6]} 10. Nbxd4 {[%clk 0:02:55.2]} 10... Bd7 {[%clk 0:02:10.7]} 11. c3
{[%clk 0:02:52.3]} 11... f6 {[%clk 0:02:00]} 12. exf6 {[%clk 0:02:43.6]} 12...
Rxf6 {[%clk 0:01:56.2]} 13. Bd3 {[%clk 0:02:31.7]} 13... Qc7 {[%clk 0:01:54]}
14. g3 {[%clk 0:02:30.3]} 14... e5 {[%clk 0:01:50.3]} 15. Nxe5 {[%clk
0:02:06.2]} 15... Nxe5 {[%clk 0:01:49.3]} 16. fxe5 {[%clk 0:02:07.1]} 16...
Qxe5+ {[%clk 0:01:47]} 17. Qe2 {[%clk 0:02:07.5]} 17... Qg5 {[%clk 0:01:32.4]}
18. Nf3 {[%clk 0:02:00.2]} 18... Qh5 {[%clk 0:01:26.4]} 19. O-O {[%clk
0:01:58.7]} 19... Nc6 {[%clk 0:01:04.9]} 20. Nd4 {[%clk 0:01:45.3]} 20... Bg4
{[%clk 0:01:01.2]} 21. Qd2 {[%clk 0:01:44.9]} 21... Raf8 {[%clk 0:00:24]} 22.
Rxf6 {[%clk 0:01:39.1]} 22... Rxf6 {[%clk 0:00:24.9]} 23. Rf1 {[%clk 0:01:39.2]}
23... Nxd4 {[%clk 0:00:21]} 24. Rxf6 {[%clk 0:01:32.9]} 24... gxf6 {[%clk
0:00:10.1]} 25. cxd4 {[%clk 0:01:33.1]} 25... Bf3 {[%clk 0:00:08.2]} 26. Qf4
{[%clk 0:01:26.1]} 26... Qg4 {[%clk 0:00:00.3]} 27. Qb8+ {[%clk 0:01:16]} 1-0

[Event "Early-Titled-Tuesday-Blitz-May-14-2024"]
[Site "Chess.com"]
[Date "2024.05.14"]
[Round "4"]
[White "teresin05"]
[Black "ural58"]
[Result "1-0"]
[WhiteElo "2272"]
[BlackElo "2476"]
[TimeControl "180+1"]
[EndTime "8:39:35 PDT"]
[Termination "teresin05 won by resignation"]

1. e4 {[%clk 0:03:00.9]} 1... d5 {[%clk 0:02:57.3]} 2. exd5 {[%clk 0:03:00.5]}
2... Qxd5 {[%clk 0:02:57.3]} 3. Nc3 {[%clk 0:03:00.5]} 3... Qa5 {[%clk
0:02:57.1]} 4. d4 {[%clk 0:02:59.7]} 4... Nf6 {[%clk 0:02:57.3]} 5. Nf3 {[%clk
0:02:59.2]} 5... Nc6 {[%clk 0:02:57.1]} 6. Be2 {[%clk 0:02:49]} 6... Bg4 {[%clk
0:02:56.2]} 7. h3 {[%clk 0:02:48.8]} 7... Bxf3 {[%clk 0:02:55.5]} 8. Bxf3 {[%clk
0:02:48]} 8... Rd8 {[%clk 0:02:56.1]} 9. Be3 {[%clk 0:02:40]} 9... e5 {[%clk
0:02:55.7]} 10. Bxc6+ {[%clk 0:02:34.7]} 10... bxc6 {[%clk 0:02:54.9]} 11. Qe2
{[%clk 0:02:28.7]} 11... Bb4 {[%clk 0:02:52.4]} 12. O-O {[%clk 0:02:22.4]} 12...
Bxc3 {[%clk 0:02:51.6]} 13. bxc3 {[%clk 0:02:22.3]} 13... Qxc3 {[%clk
0:02:46.3]} 14. dxe5 {[%clk 0:02:18.2]} 14... Qxe5 {[%clk 0:02:35.5]} 15. Qc4
{[%clk 0:02:13.6]} 15... Qd5 {[%clk 0:02:31.9]} 16. Qb4 {[%clk 0:02:03.6]} 16...
a5 {[%clk 0:02:25.9]} 17. Qa3 {[%clk 0:02:00.5]} 17... Rd6 {[%clk 0:02:22.9]}
18. Bc5 {[%clk 0:01:54.8]} 18... Re6 {[%clk 0:02:19.1]} 19. Rfd1 {[%clk
0:01:46.7]} 19... Qc4 {[%clk 0:02:09.3]} 20. Qxa5 {[%clk 0:01:41.8]} 20... Nd5
{[%clk 0:02:03.8]} 21. Qa8+ {[%clk 0:00:56.1]} 21... Kd7 {[%clk 0:02:03.8]} 22.
Qxh8 {[%clk 0:00:54.9]} 22... Qxc5 {[%clk 0:02:04.3]} 23. Qxg7 {[%clk
0:00:52.9]} 23... Re7 {[%clk 0:01:27.6]} 24. Qxh7 {[%clk 0:00:50]} 24... f6
{[%clk 0:01:17.5]} 25. Qf5+ {[%clk 0:00:42.8]} 25... Kd6 {[%clk 0:01:17.1]} 26.
Qxf6+ {[%clk 0:00:35.6]} 26... Kd7 {[%clk 0:01:12.4]} 27. Qf5+ {[%clk
0:00:35.8]} 27... Kd6 {[%clk 0:01:12.7]} 28. Qf4+ {[%clk 0:00:31.9]} 28... Kd7
{[%clk 0:01:12.5]} 29. c4 {[%clk 0:00:28.6]} 29... Qb4 {[%clk 0:01:02.8]} 30.
Qf5+ {[%clk 0:00:27.1]} 1-0

[Event "Early-Titled-Tuesday-Blitz-May-14-2024"]
[Site "Chess.com"]
[Date "2024.05.14"]
[Round "4"]
[White "ajeale2"]
[Black "lluiss"]
[Result "1-0"]
[WhiteElo "2484"]
[BlackElo "2203"]
[TimeControl "180+1"]
[EndTime "8:39:35 PDT"]
[Termination "ajeale2 won on time"]

1. b3 {[%clk 0:03:00.9]} 1... d5 {[%clk 0:02:57.4]} 2. Bb2 {[%clk 0:03:00.9]}
2... Bf5 {[%clk 0:02:57.4]} 3. Nf3 {[%clk 0:03:00.8]} 3... e6 {[%clk 0:02:56.6]}
4. e3 {[%clk 0:02:59.9]} 4... Nf6 {[%clk 0:02:56.2]} 5. Be2 {[%clk 0:03:00.1]}
5... h6 {[%clk 0:02:56.1]} 6. O-O {[%clk 0:03:00.5]} 6... Be7 {[%clk 0:02:54.8]}
7. d3 {[%clk 0:02:59.9]} 7... O-O {[%clk 0:02:54.2]} 8. c4 {[%clk 0:02:58.3]}
8... c6 {[%clk 0:02:51]} 9. Nc3 {[%clk 0:02:58.1]} 9... Nbd7 {[%clk 0:02:50.8]}
10. Rc1 {[%clk 0:02:55.2]} 10... a5 {[%clk 0:02:49.7]} 11. Re1 {[%clk
0:02:52.6]} 11... Bh7 {[%clk 0:02:21.7]} 12. Bf1 {[%clk 0:02:52.4]} 12... Nc5
{[%clk 0:02:18.3]} 13. Ne5 {[%clk 0:02:35]} 13... a4 {[%clk 0:02:15.5]} 14. d4
{[%clk 0:01:55.2]} 14... a3 {[%clk 0:01:53.9]} 15. Ba1 {[%clk 0:01:54.9]} 15...
Na6 {[%clk 0:01:45]} 16. c5 {[%clk 0:01:53.5]} 16... Nb4 {[%clk 0:01:29.2]} 17.
Qd2 {[%clk 0:01:50.5]} 17... Nd7 {[%clk 0:01:06.6]} 18. Nxd7 {[%clk 0:01:43.2]}
18... Qxd7 {[%clk 0:01:06.3]} 19. Na4 {[%clk 0:01:43.9]} 19... Rxa4 {[%clk
0:00:46.3]} 20. bxa4 {[%clk 0:01:44]} 20... Na6 {[%clk 0:00:44]} 21. Bd3 {[%clk
0:01:44.6]} 21... Bd8 {[%clk 0:00:41]} 22. Bxh7+ {[%clk 0:01:43.8]} 22... Kxh7
{[%clk 0:00:39.4]} 23. Qd3+ {[%clk 0:01:43.8]} 23... Kg8 {[%clk 0:00:39.1]} 24.
Qxa3 {[%clk 0:01:44.2]} 24... Ba5 {[%clk 0:00:37.4]} 25. Bc3 {[%clk 0:01:44.5]}
25... Qc7 {[%clk 0:00:36.9]} 26. Rb1 {[%clk 0:01:43.5]} 26... Rb8 {[%clk
0:00:33.7]} 27. Rb2 {[%clk 0:01:41.2]} 27... b5 {[%clk 0:00:12.3]} 28. cxb6
{[%clk 0:01:40]} 28... Bxb6 {[%clk 0:00:11.1]} 29. Reb1 {[%clk 0:01:36.2]} 29...
Ba7 {[%clk 0:00:11.2]} 30. Rxb8+ {[%clk 0:01:33.6]} 30... Nxb8 {[%clk
0:00:11.4]} 31. Qb4 {[%clk 0:01:28.2]} 31... c5 {[%clk 0:00:08.9]} 32. Qb7
{[%clk 0:01:27.3]} 1-0

[Event "Early-Titled-Tuesday-Blitz-May-14-2024"]
[Site "Chess.com"]
[Date "2024.05.14"]
[Round "4"]
[White "Actuary44"]
[Black "Maria_Elayza"]
[Result "0-1"]
[WhiteElo "2477"]
[BlackElo "2272"]
[TimeControl "180+1"]
[EndTime "8:39:37 PDT"]
[Termination "Maria_Elayza won on time"]

1. e4 {[%clk 0:03:00.9]} 1... e6 {[%clk 0:02:58.5]} 2. d4 {[%clk 0:03:00.8]}
2... d5 {[%clk 0:02:53.9]} 3. Nc3 {[%clk 0:03:01.1]} 3... dxe4 {[%clk
0:02:53.5]} 4. Nxe4 {[%clk 0:03:02]} 4... Nd7 {[%clk 0:02:53.3]} 5. Nf3 {[%clk
0:03:02]} 5... Ngf6 {[%clk 0:02:52.8]} 6. Neg5 {[%clk 0:03:01.6]} 6... h6 {[%clk
0:02:49.5]} 7. Nh3 {[%clk 0:03:02]} 7... Bd6 {[%clk 0:02:48.3]} 8. Bd3 {[%clk
0:03:01.5]} 8... c5 {[%clk 0:02:46.8]} 9. dxc5 {[%clk 0:02:54.7]} 9... Bxc5
{[%clk 0:02:46.4]} 10. Qe2 {[%clk 0:02:43.7]} 10... Qc7 {[%clk 0:02:45.6]} 11.
Bf4 {[%clk 0:02:41.2]} 11... Bd6 {[%clk 0:02:45.4]} 12. Bxd6 {[%clk 0:02:40.3]}
12... Qxd6 {[%clk 0:02:46.3]} 13. O-O-O {[%clk 0:02:40.6]} 13... Qc7 {[%clk
0:02:42.8]} 14. g3 {[%clk 0:02:32.1]} 14... Nc5 {[%clk 0:02:42.1]} 15. Nf4
{[%clk 0:02:31.1]} 15... O-O {[%clk 0:02:40.1]} 16. Ne5 {[%clk 0:02:24.7]} 16...
Bd7 {[%clk 0:02:35.9]} 17. Kb1 {[%clk 0:02:20.3]} 17... Bc6 {[%clk 0:02:32.5]}
18. Nxc6 {[%clk 0:02:19]} 18... Qxc6 {[%clk 0:02:32.4]} 19. g4 {[%clk
0:02:10.1]} 19... Nxd3 {[%clk 0:02:30.8]} 20. Nxd3 {[%clk 0:02:09.5]} 20... Qe4
{[%clk 0:02:28.7]} 21. Qxe4 {[%clk 0:01:57]} 21... Nxe4 {[%clk 0:02:29.6]} 22.
Rhe1 {[%clk 0:01:56.6]} 22... Ng5 {[%clk 0:02:25]} 23. Ne5 {[%clk 0:01:40.3]}
23... Rfd8 {[%clk 0:02:21.5]} 24. h4 {[%clk 0:01:11.3]} 24... Nh7 {[%clk
0:02:16.7]} 25. Nd3 {[%clk 0:00:51.7]} 25... Nf6 {[%clk 0:02:14.6]} 26. g5
{[%clk 0:00:51.7]} 26... hxg5 {[%clk 0:02:11.4]} 27. hxg5 {[%clk 0:00:52.6]}
27... Nd5 {[%clk 0:02:10.4]} 28. g6 {[%clk 0:00:51.6]} 28... Kf8 {[%clk
0:02:04.9]} 29. gxf7 {[%clk 0:00:49.9]} 29... Kxf7 {[%clk 0:02:04.9]} 30. Nc5
{[%clk 0:00:46.1]} 30... b6 {[%clk 0:01:56.8]} 31. Nxe6 {[%clk 0:00:44.3]} 31...
Nc3+ {[%clk 0:01:52]} 32. Kc1 {[%clk 0:00:17.6]} 32... Rxd1+ {[%clk 0:01:42.9]}
33. Rxd1 {[%clk 0:00:17.2]} 33... Nxd1 {[%clk 0:01:43.5]} 34. Ng5+ {[%clk
0:00:08.6]} 34... Kg6 {[%clk 0:01:42.3]} 0-1

[Event "Early-Titled-Tuesday-Blitz-May-14-2024"]
[Site "Chess.com"]
[Date "2024.05.14"]
[Round "4"]
[White "RamonManon0g"]
[Black "SujanaLohani"]
[Result "1-0"]
[WhiteElo "2432"]
[BlackElo "1971"]
[TimeControl "180+1"]
[EndTime "8:39:38 PDT"]
[Termination "RamonManon0g won by resignation"]

1. e4 {[%clk 0:03:00.9]} 1... c5 {[%clk 0:02:59.4]} 2. Nf3 {[%clk 0:02:59.7]}
2... g6 {[%clk 0:02:59.3]} 3. c3 {[%clk 0:02:59.3]} 3... d5 {[%clk 0:02:59.3]}
4. exd5 {[%clk 0:02:58.3]} 4... Qxd5 {[%clk 0:02:59.7]} 5. d4 {[%clk 0:02:59.2]}
5... cxd4 {[%clk 0:02:59.5]} 6. Nxd4 {[%clk 0:02:58]} 6... Bg7 {[%clk
0:02:55.8]} 7. Bb5+ {[%clk 0:02:54.3]} 7... Bd7 {[%clk 0:02:54.4]} 8. Bxd7+
{[%clk 0:02:53.7]} 8... Nxd7 {[%clk 0:02:54.2]} 9. O-O {[%clk 0:02:52]} 9...
Ngf6 {[%clk 0:02:54.7]} 10. Re1 {[%clk 0:02:46.5]} 10... O-O {[%clk 0:02:50.1]}
11. Rxe7 {[%clk 0:02:44.7]} 11... Rfe8 {[%clk 0:02:46.5]} 12. Rxe8+ {[%clk
0:02:35.6]} 12... Rxe8 {[%clk 0:02:47.4]} 13. Nd2 {[%clk 0:02:35.9]} 13... Ne5
{[%clk 0:02:38.4]} 14. Nf1 {[%clk 0:02:25.3]} 14... Nc4 {[%clk 0:02:25.3]} 15.
Ne3 {[%clk 0:02:24.7]} 15... Nxe3 {[%clk 0:02:22.1]} 16. Bxe3 {[%clk 0:02:25.6]}
16... h5 {[%clk 0:02:14]} 17. h3 {[%clk 0:02:22.5]} 17... Ne4 {[%clk 0:02:07.7]}
18. Qb3 {[%clk 0:02:18.1]} 18... Qd7 {[%clk 0:02:05.3]} 19. Rd1 {[%clk
0:02:17.1]} 19... a6 {[%clk 0:01:56.6]} 20. a4 {[%clk 0:01:59.8]} 20... Nc5
{[%clk 0:01:52.7]} 21. Qc2 {[%clk 0:01:56.5]} 21... Qxa4 {[%clk 0:01:40.2]} 22.
b3 {[%clk 0:01:53.8]} 22... Qd7 {[%clk 0:01:36.6]} 23. Nf3 {[%clk 0:01:45.4]}
23... Qc7 {[%clk 0:01:32.2]} 24. c4 {[%clk 0:01:31.2]} 24... Ne4 {[%clk
0:01:26.5]} 25. c5 {[%clk 0:01:17.8]} 25... Nc3 {[%clk 0:01:18.9]} 26. Rd3
{[%clk 0:01:15.4]} 26... Ne4 {[%clk 0:01:05]} 27. b4 {[%clk 0:01:12.7]} 27... b6
{[%clk 0:01:00.3]} 28. c6 {[%clk 0:01:11.6]} 28... Rc8 {[%clk 0:00:53]} 29. Rd7
{[%clk 0:01:04.2]} 29... Qxc6 {[%clk 0:00:43.7]} 30. Rd8+ {[%clk 0:01:03.7]}
30... Bf8 {[%clk 0:00:38.4]} 31. Rxc8 {[%clk 0:01:02.9]} 31... Qd7 {[%clk
0:00:35.8]} 32. Bh6 {[%clk 0:00:59.3]} 1-0

[Event "Early-Titled-Tuesday-Blitz-May-14-2024"]
[Site "Chess.com"]
[Date "2024.05.14"]
[Round "4"]
[White "Mikhail_Bryakin"]
[Black "becemix"]
[Result "1-0"]
[WhiteElo "2891"]
[BlackElo "2604"]
[TimeControl "180+1"]
[EndTime "8:39:39 PDT"]
[Termination "Mikhail_Bryakin won by resignation"]

1. e4 {[%clk 0:02:59.9]} 1... e5 {[%clk 0:02:59.8]} 2. Nf3 {[%clk 0:02:59.6]}
2... Nc6 {[%clk 0:03:00.2]} 3. d4 {[%clk 0:02:59.4]} 3... exd4 {[%clk 0:03:00]}
4. Bc4 {[%clk 0:03:00]} 4... Nf6 {[%clk 0:02:57.6]} 5. e5 {[%clk 0:03:00.1]}
5... d5 {[%clk 0:02:57.6]} 6. Bb5 {[%clk 0:02:59.1]} 6... Ne4 {[%clk 0:02:57.6]}
7. O-O {[%clk 0:02:51.2]} 7... Bd7 {[%clk 0:02:46.1]} 8. Bxc6 {[%clk 0:02:48]}
8... bxc6 {[%clk 0:02:25.5]} 9. Nxd4 {[%clk 0:02:46.9]} 9... c5 {[%clk
0:02:25.7]} 10. Nf3 {[%clk 0:02:45.1]} 10... Bg4 {[%clk 0:02:21.5]} 11. h3
{[%clk 0:02:45.4]} 11... Bh5 {[%clk 0:02:17.3]} 12. c4 {[%clk 0:02:45.3]} 12...
c6 {[%clk 0:02:08.7]} 13. Nc3 {[%clk 0:02:35.2]} 13... Nxc3 {[%clk 0:02:04.4]}
14. bxc3 {[%clk 0:02:36.1]} 14... Be7 {[%clk 0:02:01.8]} 15. Be3 {[%clk
0:02:23.5]} 15... O-O {[%clk 0:01:58.2]} 16. Qa4 {[%clk 0:01:59.9]} 16... Bxf3
{[%clk 0:01:49.7]} 17. gxf3 {[%clk 0:02:00.8]} 17... Qd7 {[%clk 0:01:49.4]} 18.
cxd5 {[%clk 0:02:01.2]} 18... Qxh3 {[%clk 0:01:43.1]} 19. d6 {[%clk 0:01:56.7]}
19... Bd8 {[%clk 0:01:07]} 20. Qg4 {[%clk 0:01:56.6]} 20... Qxg4+ {[%clk
0:01:04.3]} 21. fxg4 {[%clk 0:01:57.5]} 21... Bb6 {[%clk 0:01:03.2]} 22. f4
{[%clk 0:01:40.5]} 22... Rfe8 {[%clk 0:01:02.7]} 23. Bf2 {[%clk 0:01:31.1]}
23... g5 {[%clk 0:00:53.7]} 24. Bg3 {[%clk 0:01:24.1]} 24... c4+ {[%clk
0:00:47.4]} 25. Kg2 {[%clk 0:01:24.3]} 25... f6 {[%clk 0:00:41.9]} 26. exf6
{[%clk 0:01:22.5]} 26... Re2+ {[%clk 0:00:34.6]} 27. Kh3 {[%clk 0:01:22.7]}
27... gxf4 {[%clk 0:00:32.6]} 28. Bxf4 {[%clk 0:01:23.3]} 28... Kf7 {[%clk
0:00:28.8]} 29. g5 {[%clk 0:01:23.8]} 29... Rae8 {[%clk 0:00:26.2]} 30. d7
{[%clk 0:01:24.1]} 30... Rd8 {[%clk 0:00:20.3]} 31. Rad1 {[%clk 0:01:24.8]}
31... Ke6 {[%clk 0:00:11.3]} 32. Rd6+ {[%clk 0:01:22.5]} 1-0

[Event "Early-Titled-Tuesday-Blitz-May-14-2024"]
[Site "Chess.com"]
[Date "2024.05.14"]
[Round "4"]
[White "dropstoneDP"]
[Black "dinushkipremanath"]
[Result "1-0"]
[WhiteElo "2977"]
[BlackElo "2056"]
[TimeControl "180+1"]
[EndTime "8:39:40 PDT"]
[Termination "dropstoneDP won by checkmate"]

1. e4 {[%clk 0:03:00.9]} 1... e6 {[%clk 0:03:00.3]} 2. d4 {[%clk 0:02:58.5]}
2... d5 {[%clk 0:03:00.3]} 3. e5 {[%clk 0:02:58.8]} 3... c5 {[%clk 0:03:00.1]}
4. c3 {[%clk 0:02:58.2]} 4... Bd7 {[%clk 0:03:00.4]} 5. Nf3 {[%clk 0:02:58.1]}
5... Bc6 {[%clk 0:03:00.7]} 6. Bd3 {[%clk 0:02:53.6]} 6... Qd7 {[%clk
0:03:00.7]} 7. O-O {[%clk 0:02:46.1]} 7... Bb5 {[%clk 0:03:00.9]} 8. Bxb5 {[%clk
0:02:34]} 8... Qxb5 {[%clk 0:03:01.8]} 9. a4 {[%clk 0:02:34.5]} 9... Qd7 {[%clk
0:03:00.6]} 10. Na3 {[%clk 0:02:28.7]} 10... a6 {[%clk 0:02:50.1]} 11. Nc2
{[%clk 0:02:25.1]} 11... Nc6 {[%clk 0:02:48.4]} 12. dxc5 {[%clk 0:02:21.8]}
12... Bxc5 {[%clk 0:02:46.4]} 13. b4 {[%clk 0:02:22.3]} 13... Ba7 {[%clk
0:02:41.7]} 14. b5 {[%clk 0:02:19.3]} 14... Na5 {[%clk 0:02:39.3]} 15. Be3
{[%clk 0:01:45.6]} 15... Ne7 {[%clk 0:02:36.7]} 16. Bxa7 {[%clk 0:01:44.1]}
16... Rxa7 {[%clk 0:02:37.6]} 17. Ne3 {[%clk 0:01:37.6]} 17... O-O {[%clk
0:02:35.4]} 18. c4 {[%clk 0:01:26.2]} 18... axb5 {[%clk 0:02:21.1]} 19. axb5
{[%clk 0:01:27.1]} 19... Rd8 {[%clk 0:02:14.3]} 20. cxd5 {[%clk 0:01:22.1]}
20... Nxd5 {[%clk 0:02:10]} 21. Nxd5 {[%clk 0:01:21.8]} 21... Qxd5 {[%clk
0:02:10.1]} 22. Qxd5 {[%clk 0:01:21.7]} 22... Rxd5 {[%clk 0:02:08.8]} 23. Rfc1
{[%clk 0:01:20.3]} 23... h6 {[%clk 0:02:04.3]} 24. Rc8+ {[%clk 0:01:14]} 24...
Kh7 {[%clk 0:02:03.5]} 25. h4 {[%clk 0:01:12.6]} 25... Rxb5 {[%clk 0:01:53.4]}
26. Rd1 {[%clk 0:01:06.6]} 26... Nc6 {[%clk 0:01:45.9]} 27. Rd7 {[%clk
0:01:01.8]} 27... Nxe5 {[%clk 0:01:34.2]} 28. Nxe5 {[%clk 0:01:01.7]} 28... Rxe5
{[%clk 0:01:34.4]} 29. Rxf7 {[%clk 0:01:02.3]} 29... Kg6 {[%clk 0:01:33]} 30.
Rcc7 {[%clk 0:01:00.8]} 30... Kh5 {[%clk 0:01:19.1]} 31. Rxg7 {[%clk 0:00:59.1]}
31... Kxh4 {[%clk 0:01:16.7]} 32. Rc4+ {[%clk 0:00:50.6]} 32... Kh5 {[%clk
0:01:14.3]} 33. g3 {[%clk 0:00:50.1]} 33... Ra1+ {[%clk 0:01:11.7]} 34. Kg2
{[%clk 0:00:49.3]} 34... Rg5 {[%clk 0:00:51.5]} 35. Rh4# {[%clk 0:00:48.8]} 1-0